Cogmind - Beta 15 @@@ ROGUE MODE // 2025.08.02 @ 23:08:26 Player: Cracklepappy Result: Destroyed by S-27 Virus with Autogun Performance ------------- Evolutions (3) 1500 Regions Visited (17) 3400 Robots Destroyed (351) 1755 Value Destroyed (16105) 16105 Prototype IDs (45) 900 Alien Tech Used (0) 0 Bonus (6612) 6612 TOTAL SCORE: 30272 Bonus ------- High Alert Combat Kills 5363 Follower Combat Kills 1374 Entered Garrisons 800 Aligned with FarCom 300 Friendly Fire -1225 Cogmind --------- Core Integrity 0/700 Matter 290/300 Energy 325/325 System Corruption 15% Temperature Cool (0) Movement Rolling (108) Ox1 Location -7/Factory Parts ------- > --- POWER (1) -------- Antimatter Reactor > --- PROPULSION (3) --- Compact Wheel Armored Wheel Armored Wheel > --- UTILITY (4) ------ Improved Heat Sink Experimental Heat Sink High-capacity Storage Unit Advanced Visual Processing Unit > --- WEAPON (5) ------- Particle Gun Plasma Cutter > --- INVENTORY (20) --- Armored Wheel Armored Wheel Improved Heat Sink Improved Cooling System High-capacity Matter Pod (200) Matter Compressor (19) Targeting Computer Advanced Targeting Computer Armor Integrity Analyzer Advanced Recoil Stabilizer Improved Light Armor Plating Improved System Guard Long-range Tractor Beam AS-neutralizer No. 17b Gatling Laser Gatling Laser Autogun Flak Gun Powered Hammer Peak State ------------ > --- POWER ------------ Reinforced Deuterium Engine > --- PROPULSION ------- Compact Wheel Armored Wheel Armored Wheel > --- UTILITY ---------- Improved Cooling System High-capacity Storage Unit Machine Analyzer Experimental Core Analyzer > --- WEAPON ----------- Flak Gun Flak Gun Coil Gun 8R-AWN's Boregun Enhanced Gauss Cannon > --- INVENTORY -------- Reinforced Deuterium Engine Antimatter Reactor Experimental Heat Sink Improved Cooling System High-capacity Matter Pod High-capacity Matter Pod Machine Analyzer Advanced Targeting Computer Advanced Recoil Stabilizer Improved System Guard Long-range Tractor Beam AS-neutralizer No. 17b Particle Gun Particle Gun Particle Gun Heavy Rocket Launcher Plasma Cutter Powered Hammer [Rating: 63] Favorites ----------- Power Nuclear Core Engine Reinforced Deuterium Engine Power Core Nuclear Core Reactor Antimatter Reactor Propulsion Armored Wheel Wheel Armored Wheel Utility Improved Targeting Computer Device Improved Cooling System Storage High-capacity Storage Unit Processor Improved Targeting Computer Hackware Hacking Suite Protection Improved Medium Armor Plating Weapon Improved Assault Rifle Energy Gun Gatling Laser Energy Cannon Advanced Beam Cannon Ballistic Gun Improved Assault Rifle Ballistic Cannon Improved Light Cannon Launcher Rocket Launcher Special Weapon Plasma Cutter Impact Weapon Powered Hammer Slashing Weapon Longsword +1 Special Melee Weapon Datajack Build | -11 -10 -10 -9 -9 -9 -8 -8 -8 -8 -8 -7 -7 -7 -7 -7 -7 -7 ------- Run | Yrd Mat Min Mat Min Exi Min Mat Gar Mat Gar Fac Was Fac Gar Fac Gar Fac Slots Evolved 6 | . . . 2 . . . 2 . . . 2 . . . . . . Power . | . . . . . . . . . . . . . . . . . . Propulsion 1 | . . . . . . . . . . . 1 . . . . . . Utility 2 | . . . . . . . 1 . . . 1 . . . . . . Weapon 3 | . . . 2 . . . 1 . . . . . . . . . . Parts Attached 198 | 7 14 2 27 4 10 4 7 29 2 10 9 9 16 20 8 20 . Power 20 | 1 2 1 4 . 1 . 2 2 . 1 . 1 1 2 . 2 . Engine 12 | 1 1 1 1 . . . 1 2 . 1 . . 1 2 . 1 . Core 6 | . 1 . 3 . 1 . 1 . . . . . . . . . . Reactor 2 | . . . . . . . . . . . . 1 . . . 1 . Propulsion 54 | 3 4 . 6 4 2 2 1 10 1 3 1 . 5 5 3 4 . Treads . | . . . . . . . . . . . . . . . . . . Leg . | . . . . . . . . . . . . . . . . . . Wheel 54 | 3 4 . 6 4 2 2 1 10 1 3 1 . 5 5 3 4 . Hover . | . . . . . . . . . . . . . . . . . . Flight . | . . . . . . . . . . . . . . . . . . Utility 32 | 1 5 . 2 . . . 1 3 1 . 5 2 4 2 2 4 . Device 13 | . 1 . . . . . . . 1 . 4 2 . 1 1 3 . Storage 6 | 1 1 . 2 . . . . 1 . . . . 1 . . . . Processor 10 | . 3 . . . . . 1 2 . . . . 1 1 1 1 . Hackware 2 | . . . . . . . . . . . . . 2 . . . . Protection 1 | . . . . . . . . . . . 1 . . . . . . Artifact . | . . . . . . . . . . . . . . . . . . Weapon 92 | 2 3 1 15 . 7 2 3 14 . 6 3 6 6 11 3 10 . Energy Gun 11 | . 1 . . . . . . . . . . 1 . 2 . 7 . Energy Cannon 3 | . 1 . 2 . . . . . . . . . . . . . . Ballistic Gun 52 | 2 . . 6 . 2 1 3 12 . 6 2 2 4 9 1 2 . Ballistic Cannon 16 | . . . 7 . 2 1 . . . . . 2 2 . 2 . . Launcher 3 | . . 1 . . 1 . . . . . . . . . . 1 . Special Weapon 3 | . 1 . . . . . . 1 . . 1 . . . . . . Impact Weapon 2 | . . . . . . . . 1 . . . 1 . . . . . Slashing Weapon 1 | . . . . . 1 . . . . . . . . . . . . Piercing Weapon . | . . . . . . . . . . . . . . . . . . Special Melee Weapon 1 | . . . . . 1 . . . . . . . . . . . . Unidentified Prototypes 3 | . . . 2 . . . . . . . . . 1 . . . . Parts Lost 47 | . . . 2 . 2 1 . 4 . 6 . . 6 7 1 16 2 Power 4 | . . . . . . . . 1 . 1 . . . . . 2 . Propulsion 13 | . . . 1 . 1 1 . . . 2 . . 2 3 . 3 . Utility 6 | . . . . . . . . 1 . . . . . 1 1 3 . Weapon 24 | . . . 1 . 1 . . 2 . 3 . . 4 3 . 8 2 Highest Loss Streak 15 | . . . 1 . 2 1 . 3 . 2 . . 4 2 1 15 2 To Critical Strikes 2 | . . . . . 1 . . . . 1 . . . . . . . Average Backups 20 | 3 13 15 18 25 23 24 24 22 19 19 19 19 19 19 20 15 19 Power 1 | . 1 . . 2 2 1 1 . 1 . 1 . 1 1 1 . . Propulsion 1 | 2 3 3 2 2 1 . 1 2 2 . 1 1 1 2 1 . 2 Utility 8 | . 2 6 5 5 6 11 10 10 10 9 11 11 11 9 8 7 12 Weapon 7 | . 5 3 7 14 12 10 10 8 4 5 5 5 4 5 7 5 5 Tool/Special . | . . . . . . . . . . . . . . . . . . Unused Backups 70 | . 6 3 12 1 5 . 7 8 3 3 1 4 4 4 . 1 8 Power 8 | . . . 2 . 3 . . . . 1 1 1 . . . . . Propulsion 11 | . 3 . 2 1 . . 1 3 . 1 . . . . . . . Utility 31 | . 1 1 5 . 2 . 2 2 3 1 . 2 2 1 . 1 8 Weapon 20 | . 2 2 3 . . . 4 3 . . . 1 2 3 . . . Tool/Special . | . . . . . . . . . . . . . . . . . . Average Slot Usage (%) 97 | . 99 100 99 100 85 97 99 99 100 99 99 99 99 98 99 88 100 Engine 5 | . 11 14 4 . . . 7 7 9 8 7 6 7 7 7 3 . Core 3 | . 2 . 6 11 11 11 1 1 . . . . . . . . . Wheel 21 | . 27 28 22 22 21 19 18 17 18 17 23 23 22 21 23 17 23 Device 3 | . 1 . . . . . . . 2 9 8 15 6 6 4 10 15 Storage 9 | . 14 14 11 11 11 11 9 9 9 9 7 7 7 7 7 7 7 Processor 12 | . 12 14 11 11 11 11 17 17 15 9 7 7 15 15 18 7 7 Energy Gun 1 | . 5 . . . . . . . . . . . . 1 . 14 30 Energy Cannon 2 | . 5 13 11 11 3 . . . . . . . . . . . . Ballistic Gun 27 | . 16 14 19 . 7 33 44 43 45 43 37 36 34 31 36 15 . Ballistic Cannon 6 | . . . 12 33 15 11 . . . . . . 3 2 1 2 . Peak Build Rating 63 | 6 13 11 23 23 39 30 44 56 50 53 52 58 63 59 54 57 48 Average Rating 37 | 5 9 10 19 23 24 29 42 45 49 47 50 54 57 52 52 47 47 On Entrance 35 | . 6 10 11 23 23 30 30 43 50 49 44 51 55 50 54 53 48 Naked Turns . | . . . . . . . . . . . . . . . . . . Heaviest Build 109 | 12 30 30 103 103 109 102 103 106 72 77 82 84 87 78 72 77 72 Greatest Support 44 | 26 20 20 20 20 22 28 28 24 24 24 36 36 40 44 40 40 40 Greatest Overweight (x) 25 | . 4 1 5 5 8 8 4 8 2 6 2 25 2 5 1 4 1 Average Overweight (x) 2 | . . 1 2 5 3 4 3 2 2 2 1 5 2 1 1 1 1 Largest Inventory Capacity 25 | 8 15 15 25 25 25 25 25 25 20 20 20 20 20 20 20 20 20 Average Capacity 21 | 7 13 15 18 25 25 25 25 22 20 20 20 20 20 20 20 20 20 Most Carried 25 | 8 15 15 25 25 25 25 25 25 20 20 20 20 20 20 20 20 19 Average Carried 20 | 4 13 14 18 25 23 24 24 22 19 19 19 19 19 19 19 15 19 Final Capacity 25 | 8 15 15 25 25 25 25 25 20 20 20 20 20 20 20 20 20 20 Final Carried 25 | 8 15 15 25 25 25 25 25 20 20 20 20 20 20 20 20 19 19 Class Distribution -------------------- 46% | Scavenger-Gunner 40% | Gunner 13% | Mutant Dominant Class ---------------- Mutant | -10/Materials Mutant | -10/Mines Gunner | -9/Materials Gunner | -9/Mines Gunner | -9/Exiles Gunner | -8/Mines Gunner | -8/Materials Scavenger-Gunner | -8/Garrison Scavenger-Gunner | -8/Materials Scavenger-Gunner | -8/Garrison Scavenger-Gunner | -7/Factory Scavenger-Gunner | -7/Waste Scavenger-Gunner | -7/Factory Scavenger-Gunner | -7/Garrison Scavenger-Gunner | -7/Factory Scavenger-Gunner | -7/Garrison Scavenger-Skirmisher | -7/Factory Resources | -11 -10 -10 -9 -9 -9 -8 -8 -8 -8 -8 -7 -7 -7 -7 -7 -7 -7 ----------- Run | Yrd Mat Min Mat Min Exi Min Mat Gar Mat Gar Fac Was Fac Gar Fac Gar Fac Matter Collected 15393 | 372 587 170 1172 140 972 321 612 2099 376 2317 48 689 2201 2044 224 1049 . Remotely 530 | . 46 . . . . . . . . . . 53 193 238 . . . Salvage Created 16673 | 233 609 255 2080 50 596 324 1105 2415 678 1941 48 1109 2106 1777 310 1037 . Parts 892 | 16 38 26 135 10 60 22 69 101 39 100 6 23 122 83 13 29 . Haulers Intercepted 18 | . 2 . 6 . . . 3 . 2 . . . 5 . . . . Recyclers Shooed 2 | . 1 . . . . . 1 . . . . . . . . . . Parts Field Recycled . | . . . . . . . . . . . . . . . . . . Retrieved Matter . | . . . . . . . . . . . . . . . . . . Parts Self-Destructed . | . . . . . . . . . . . . . . . . . . Prevented . | . . . . . . . . . . . . . . . . . . Kills | -11 -10 -10 -9 -9 -9 -8 -8 -8 -8 -8 -7 -7 -7 -7 -7 -7 -7 ------- Run | Yrd Mat Min Mat Min Exi Min Mat Gar Mat Gar Fac Was Fac Gar Fac Gar Fac Combat Hostiles Destroyed 255 | . 9 10 34 2 3 8 15 29 12 37 1 . 33 40 2 20 . Melee 1 | . . . . . 1 . . . . . . . . . . . . Guns 214 | . 7 2 24 . . 7 15 29 12 37 1 . 30 35 2 13 . Cannons 32 | . 2 5 10 2 . 1 . . . . . . 3 5 . 4 . AOE 8 | . . 3 . . 2 . . . . . . . . . . 3 . Classes Destroyed 24 | 3 5 1 3 . 3 1 1 3 . . . 1 2 . . 1 . Worker 12 | 2 2 . 4 1 . 1 1 . . . . . 1 . . . . Builder 17 | . 2 1 2 1 . 2 1 . 1 . . . 6 . 1 . . Tunneler 8 | 5 . . 2 . . . . . . . . . 1 . . . . Hauler 18 | . 2 . 6 . . . 3 . 2 . . . 5 . . . . Recycler 16 | 1 . . 4 . . 2 3 . . . . . 4 . 2 . . Mechanic 3 | . 1 . . . . . . 1 . . . . 1 . . . . Operator 5 | . . . 2 . . . 1 . 1 . . . 1 . . . . Turret 1 | . . . . . 1 . . . . . . . . . . . . Watcher 4 | . 1 . 2 . . . . . . . . . 1 . . . . Swarmer 52 | . . 6 7 2 . 6 3 . 2 10 . . 3 13 . . . Cutter 4 | . . . . . . . . 3 . 1 . . . . . . . Grunt 111 | . 9 4 16 . . . 6 12 3 13 . . 18 16 . 14 . Brawler 6 | . . . 1 . . . . 2 1 . . . 1 1 . . . Duelist 6 | . . . . . . . 1 1 . 2 . . 1 . . 1 . Protector 1 | . . . . . . . . . . . . . 1 . . . . Sentry 43 | . . . 10 . . . 4 5 6 7 . . 1 7 2 1 . Specialist 2 | . . . . . . . . . . . . . . . . 2 . Hunter 11 | . . . . . . 2 1 3 . . . . 2 3 . . . Programmer 16 | . . . . . . . . 2 . 5 1 . 5 . . 3 . Heavy 1 | . . . . . . . . . . . . . 1 . . . . Behemoth 1 | . . . . . . . . 1 . . . . . . . . . Zionite 7 | . . . . . 7 . . . . . . . . . . . . Assembled 2 | . . . . . 2 . . . . . . . . . . . . Wasp 2 | . . . . . . . . . . . . 2 . . . . . Martyr 1 | . . . . . . . . . . . . 1 . . . . . Best Kill Streak 12 | 4 3 4 4 2 3 3 4 4 6 8 1 . 8 7 2 12 . Combat Bots Only 12 | . 2 3 4 1 2 3 3 4 3 8 1 . 7 7 1 12 . Max Kills in Single Turn 3 | 1 1 2 2 1 2 1 2 2 2 2 1 1 3 2 1 2 . Gunslinging 1 | . . . . . . . 1 1 1 1 . . 1 1 . . . Exploded 2 | . . 2 . . 2 . . . . . . . . . . 2 . Melee 1 | . . . . . 1 . . . . . . . . . . . . Uniques/NPCs Destroyed 4 | . . . . . 4 . . . . . . . . . . . . 8R-AWN (-9/Exiles) EX-HEX (-9/Exiles) EX-BIN (-9/Exiles) EX-DEC (-9/Exiles) Combat | -11 -10 -10 -9 -9 -9 -8 -8 -8 -8 -8 -7 -7 -7 -7 -7 -7 -7 -------- Run | Yrd Mat Min Mat Min Exi Min Mat Gar Mat Gar Fac Was Fac Gar Fac Gar Fac Hostile Shots Fired 1033 | . 33 20 89 9 36 42 26 108 34 135 6 . 155 179 13 141 7 Missed 291 | . 11 4 26 1 7 11 7 18 15 35 1 . 51 66 2 35 1 Hits 742 | . 22 16 63 8 29 31 19 90 19 100 5 . 104 113 11 106 6 Melee 19 | . . . . . . . . 12 . 1 . . 1 . . 4 1 Projectile 723 | . 22 16 63 8 29 31 19 78 19 99 5 . 103 113 11 102 5 Critical Strikes 49 | . 1 . 2 . 14 1 . 8 . 7 . . 3 3 . 9 1 Damage Taken 11488 | . 286 160 831 65 521 363 241 1777 291 1337 138 55 1756 1386 326 1842 113 Core 1620 | . 52 57 92 17 66 88 39 223 109 176 . . 178 154 62 290 17 Absorbed by Shields 27 | . . . . . . . . 12 . . . . . 15 . . . Regen/Repaired (Parts) 744 | . 76 . 145 . . . 66 . . . . 222 235 . . . . Core Remaining (%) 47 | 100 . 56 . . . 34 . . . . . . . . . . . Volleys Fired 1005 | 17 62 15 98 14 91 21 33 148 22 128 3 30 89 132 7 94 1 Largest 5 | 2 2 2 4 4 1 4 5 5 5 5 5 4 5 5 5 5 3 Hottest 400 | 40 100 80 168 167 68 106 120 137 139 141 122 108 175 195 135 400 154 Shots Fired 2889 | 34 122 28 371 34 91 79 164 383 110 370 11 88 412 351 34 204 3 Gun 2399 | 34 100 13 230 . 80 63 163 343 110 370 10 88 385 257 34 117 2 Cannon 317 | . 21 13 141 34 8 16 1 . . . . . 27 34 . 22 . Launcher 12 | . . 2 . . 3 . . . . . . . . . . 7 . Special 161 | . 1 . . . . . . 40 . . 1 . . 60 . 58 1 Kinetic 2491 | 34 76 13 278 25 80 79 164 343 110 370 10 77 412 275 34 111 . Thermal 374 | . 46 13 93 9 8 . . 40 . . . . . 76 . 86 3 Explosive 12 | . . 2 . . 3 . . . . . . . . . . 7 . Electromagnetic 11 | . . . . . . . . . . . . 11 . . . . . Robot Hit Streak 30 | 7 7 7 16 7 8 8 12 19 5 12 2 16 9 29 5 30 2 Robot Miss Streak 15 | 1 3 3 4 6 7 5 4 5 8 6 2 2 15 10 7 8 1 Penetration Max 2 | . . . . . . . . 2 1 2 . . 1 . . . . Secondary Targets 38 | . . . . . . . 3 7 3 9 . . 9 5 . 2 . Max Gunslinging Chain 2 | . . . . . . . 1 1 1 1 . . 2 2 . 1 . Shots Hit Robots 1653 | 24 70 16 189 11 83 43 97 229 40 160 4 64 230 223 22 146 2 Core Hits 961 | 9 30 13 77 4 25 26 43 95 24 72 2 15 201 195 24 104 2 Critical Kills 27 | . . . 1 . 6 . 1 7 2 4 . 1 4 1 . . . Critical Parts Destroyed 39 | . 1 . 1 . 9 1 1 10 2 9 . . 4 1 . . . Critical Strikes 77 | . 1 . 2 . 19 1 2 18 4 13 . 4 8 2 . 3 . Destroy 70 | . 1 . 2 . 15 1 2 18 4 13 . 4 8 2 . . . Blast 2 | . . . . . . . . . . . . . . . . 2 . Sever 5 | . . . . . 4 . . . . . . . . . . 1 . Melee Attacks 77 | . . . . . 45 . . 11 . 7 . 1 1 7 . 5 . Impact 32 | . . . . . . . . 11 . 7 . 1 1 7 . 5 . Slashing 40 | . . . . . 40 . . . . . . . . . . . . Piercing . | . . . . . . . . . . . . . . . . . . Sneak Attacks 8 | . . . . . 7 . . . . . . 1 . . . . . Combat Hostiles . | . . . . . . . . . . . . . . . . . . Follow-up Attacks . | . . . . . . . . . . . . . . . . . . Damage Inflicted 30477 | 295 1038 422 3255 230 2639 623 1485 3603 1067 3149 63 1466 4699 3308 311 2793 31 Guns 22832 | 295 825 91 1989 . 401 485 1472 3206 1067 3149 63 1209 4233 2507 311 1498 31 Cannons 2840 | . 213 179 1266 230 101 138 13 . . . . . 268 212 . 220 . Explosions 1050 | . . 152 . . 52 . . . . . . 175 198 . . 473 . Melee 2167 | . . . . . 2085 . . . . . . 82 . . . . . Ramming . | . . . . . . . . . . . . . . . . . . Kinetic 23278 | 295 519 91 2547 188 401 623 1485 3206 1067 3149 63 1101 4501 2538 311 1193 . Thermal 4049 | . 519 179 708 42 101 . . 397 . . . 175 . 770 . 1127 31 Explosive 875 | . . 152 . . 52 . . . . . . . 198 . . 473 . Electromagnetic 108 | . . . . . . . . . . . . 108 . . . . . Impact 82 | . . . . . . . . . . . . 82 . . . . . Slashing 2085 | . . . . . 2085 . . . . . . . . . . . . Piercing . | . . . . . . . . . . . . . . . . . . Highest Corruption 15 | . . . . . . . . 2 2 7 2 2 4 4 5 15 15 Average Corruption 3 | . . . . . . . . 2 2 5 1 2 2 4 4 9 15 Corruption Purged . | . . . . . . . . . . . . . . . . . . Corruption Blocked . | . . . . . . . . . . . . . . . . . . Effects 211 | . . . . . . . . 20 6 52 3 16 31 41 10 29 3 Message Errors 39 | . . . . . . . . 5 1 7 1 2 6 7 4 6 . Matter Fused 53 | . . . . . . . . 6 2 13 . 3 6 10 1 11 1 Heat Flow Errors 23 | . . . . . . . . 2 3 7 2 2 1 4 . 2 . Energy Discharges 31 | . . . . . . . . 1 . 8 . 5 4 6 1 5 1 Parts Rejected 1 | . . . . . . . . . . 1 . . . . . . . Parts Fused 5 | . . . . . . . . 1 . 2 . . . 1 . 1 . Data Loss (minor) 21 | . . . . . . . . 2 . 2 . 1 7 6 1 1 1 Data Loss (major) 10 | . . . . . . . . 1 . 4 . . 1 3 1 . . Misfires 14 | . . . . . . . . . . 4 . 2 5 2 . 1 . Alerts 5 | . . . . . . . . 1 . 1 . . . 2 1 . . Weapon Failures 9 | . . . . . . . . 1 . 3 . 1 1 . 1 2 . Overload Shots . | . . . . . . . . . . . . . . . . . . Overflow Damage 174 | . 7 2 12 6 72 . . . . . . 55 . 1 . 19 . Projectiles 26 | . 7 . 12 6 . . . . . . . . . 1 . . . Explosions 21 | . . 2 . . . . . . . . . . . . . 19 . Melee 127 | . . . . . 72 . . . . . . 55 . . . . . Knockbacks 20 | . . . 5 5 . 5 1 . . . . . 2 1 . 1 . Impact . | . . . . . . . . . . . . . . . . . . Kinetic 20 | . . . 5 5 . 5 1 . . . . . 2 1 . 1 . Secondary . | . . . . . . . . . . . . . . . . . . Self-Inflicted Damage 159 | . . . . . . . . . . . . 55 . . . 104 . Shots 5 | . . . . . . . . . . . . 1 . . . 4 . Rammed . | . . . . . . . . . . . . . . . . . . Targets Rammed . | . . . . . . . . . . . . . . . . . . Kicked . | . . . . . . . . . . . . . . . . . . Crushed . | . . . . . . . . . . . . . . . . . . Highest Temperature 674 | 6 207 81 312 300 104 147 204 274 330 353 240 69 138 282 57 674 . Average Temperature 80 | 6 60 30 94 113 51 56 48 66 91 88 115 44 25 65 28 185 . Received Heat Transfer 3129 | . 183 45 300 . . . 90 372 126 405 . . 651 405 12 522 18 Effects 15 | . . . 5 . . . . . . . . . . 2 . 8 . Shutdowns 2 | . . . . . . . . . . . . . . . . 2 . Energy Bleed 2 | . . . 2 . . . . . . . . . . . . . . Interference 5 | . . . 3 . . . . . . . . . . 2 . . . Short Circuit 2 | . . . . . . . . . . . . . . . . 2 . Damage (minor) 1 | . . . . . . . . . . . . . . . . 1 . Damage (major) 3 | . . . . . . . . . . . . . . . . 3 . Siege Activations . | . . . . . . . . . . . . . . . . . . Martial Activations . | . . . . . . . . . . . . . . . . . . Shielding Activations . | . . . . . . . . . . . . . . . . . . Robots Disrupted . | . . . . . . . . . . . . . . . . . . Combat Hostiles . | . . . . . . . . . . . . . . . . . . Robots Corrupted 1 | . . . . . . . . . . . . 1 . . . . . Combat Hostiles . | . . . . . . . . . . . . . . . . . . Parts Fried 2 | . . . . . . . . . . . . 2 . . . . . Impact Corruptions 1 | . . . . . . . . . . . . 1 . . . . . Robots Melted 1 | . . . . . . . . . . . . . . . . 1 . Combat Hostiles . | . . . . . . . . . . . . . . . . . . Parts Melted 8 | . . . . . . . . . . . . . 4 . . 4 . Heat Transferred 9995 | . 1147 370 1258 74 185 . . 1332 . . . 50 . 2320 . 3185 74 Parts Sabotaged . | . . . . . . . . . . . . . . . . . . Parts Stolen . | . . . . . . . . . . . . . . . . . . Parts Stripped . | . . . . . . . . . . . . . . . . . . Power Chain Reactions 2 | . . . . . . . . . . . . 1 1 . . . . Alert | -11 -10 -10 -9 -9 -9 -8 -8 -8 -8 -8 -7 -7 -7 -7 -7 -7 -7 ------- Run | Yrd Mat Min Mat Min Exi Min Mat Gar Mat Gar Fac Was Fac Gar Fac Gar Fac Maximum Alert Level 5 | . . 1 2 1 . . . 5 3 5 4 1 5 5 4 4 3 Low Security (%) 45 | 100 100 98 43 96 . 100 100 18 . . . 84 14 . . . . Level 1 9 | . . 1 46 3 . . . 10 . . . 15 8 . . . . Level 2 5 | . . . 10 . . . . 18 26 11 . . 3 . . . . Level 3 9 | . . . . . . . . 23 73 12 90 . 7 . . 12 100 Level 4 15 | . . . . . . . . 23 . 34 9 . 35 9 100 87 . Level 5 14 | . . . . . . . . 5 . 40 . . 30 90 . . . High Security . | . . . . . . . . . . . . . . . . . . Max Security . | . . . . . . . . . . . . . . . . . . Peak Influence 2808 | 15 102 201 497 224 . 80 192 1676 835 2152 1129 305 1980 2808 1500 1445 758 Initial 1474 | . . 33 74 192 . . . 2 817 530 1129 305 . 1377 1474 964 758 Average 682 | 2 27 119 253 41 . 20 55 766 740 1413 990 66 1167 2166 1436 1306 748 Influence Increases 12109 | 40 456 413 1185 84 . 270 489 1794 415 1682 38 9 2828 1561 144 701 . Destroy 0b10 Robot/C 5820 | . 180 260 680 40 . 160 300 620 240 760 20 . 1200 820 60 480 . Destroy 0b10 Robot/NC 540 | 40 40 5 110 10 . 25 45 45 30 15 . . 120 20 20 15 . Destroy Leader 990 | . 56 50 206 . . 40 96 50 76 40 10 . 244 50 32 40 . Allied During Kill 930 | . . 73 4 . . . . 14 11 8 . . 752 4 25 39 . Successful Hack 294 | . 58 . 36 . . . 43 51 13 28 8 . 31 21 5 . . Select Force Hacks 170 | . 60 . 60 . . . . . . . . . 50 . . . . Disable Machine 330 | . 30 15 30 . . . . 15 30 15 . . 150 30 . 15 . Anti-Garrison Action 2250 | . . . . . . . . 950 . 700 . . . 550 . 50 . Destroy Structure 320 | . 2 10 14 4 . . 5 49 15 56 . 9 86 21 2 47 . Lose Combat Pursuer 465 | . 30 . 45 30 . 45 . . . 60 . . 195 45 . 15 . Influence Decreases 11391 | 40 369 308 883 578 . 270 485 122 1275 346 1317 882 860 721 1574 634 727 Entered New Map 6238 | . . 54 118 302 . . . 2 859 286 1023 568 . 591 1334 414 687 Time Decay 4069 | 40 369 254 691 276 . 260 485 . 246 . 294 314 590 . 230 . 20 Lost Part 450 | . . . 20 . . 10 . 40 . 60 . . 60 70 10 160 20 Lost Ally 484 | . . . 54 . . . . 80 20 . . . 210 60 . 60 . Purge Threat 150 | . . . . . . . . . 150 . . . . . . . . Squads Dispatched 39 | . 3 . 6 . . . 3 . 2 . 1 . 23 . 1 . . Investigation 10 | . 2 . 2 . . . 1 . 1 . . . 4 . . . . Extermination 6 | . . . . . . . . . . . 1 . 4 . 1 . . Reinforcement 11 | . 1 . 3 . . . 1 . . . . . 6 . . . . Assault 6 | . . . 1 . . . . . . . . . 5 . . . . Garrison 6 | . . . . . . . 1 . 1 . . . 4 . . . . Intercept . | . . . . . . . . . . . . . . . . . . Searches Triggered . | . . . . . . . . . . . . . . . . . . Construction Impeded 3 | . . . . . . . . . . . . . 3 . . . . Haulers Reinforced 1 | . . . . . . . . . . . . . 1 . . . . Active Scanning Responses . | . . . . . . . . . . . . . . . . . . Cargo Convoy Interrupts . | . . . . . . . . . . . . . . . . . . Stealth | -11 -10 -10 -9 -9 -9 -8 -8 -8 -8 -8 -7 -7 -7 -7 -7 -7 -7 --------- Run | Yrd Mat Min Mat Min Exi Min Mat Gar Mat Gar Fac Was Fac Gar Fac Gar Fac Distress Signals 12 | . 1 . 3 1 . . . . 3 . . . 4 . . . . Communications Jammed . | . . . . . . . . . . . . . . . . . . Distress Signals . | . . . . . . . . . . . . . . . . . . Times Spotted 400 | . 27 11 50 4 24 11 21 31 18 42 2 . 83 40 4 28 4 Peak Tracking Total 14 | . 4 3 4 3 10 4 4 4 6 6 2 . 14 6 1 6 4 Tactical Retreats 33 | . 2 . 3 1 13 3 . . . 3 . . 5 2 . 1 . Traps | -11 -10 -10 -9 -9 -9 -8 -8 -8 -8 -8 -7 -7 -7 -7 -7 -7 -7 ------- Run | Yrd Mat Min Mat Min Exi Min Mat Gar Mat Gar Fac Was Fac Gar Fac Gar Fac Traps Triggered 37 | . 5 . 2 . . . . 9 . 4 4 . 3 7 1 1 1 Indirectly . | . . . . . . . . . . . . . . . . . . Trap Hack Attempts . | . . . . . . . . . . . . . . . . . . Triggered . | . . . . . . . . . . . . . . . . . . Disarmed . | . . . . . . . . . . . . . . . . . . Reprogrammed . | . . . . . . . . . . . . . . . . . . Reused . | . . . . . . . . . . . . . . . . . . Traps Extracted . | . . . . . . . . . . . . . . . . . . Installed . | . . . . . . . . . . . . . . . . . . Triggered . | . . . . . . . . . . . . . . . . . . Machines | -11 -10 -10 -9 -9 -9 -8 -8 -8 -8 -8 -7 -7 -7 -7 -7 -7 -7 ---------- Run | Yrd Mat Min Mat Min Exi Min Mat Gar Mat Gar Fac Was Fac Gar Fac Gar Fac Machines Disabled 68 | . 2 1 2 . 14 . . 14 2 12 . . 10 9 . 2 . Max in Single Turn 2 | . 1 1 1 . 1 . . 2 1 2 . . 2 1 . 1 . Garrison Relay 20 | . . . . . . . . 6 . 9 . . . 4 . 1 . Phase Generator 3 | . . . . . . . . 1 . 1 . . . 1 . . . Machines Repaired . | . . . . . . . . . . . . . . . . . . Machines Dismantled 6 | . . . . . . . . 2 . 1 . . . 3 . . . Machines Sabotaged . | . . . . . . . . . . . . . . . . . . Overloaded Fab Kills 1 | . . . . . . . . . . . . . 1 . . . . Hacking | -11 -10 -10 -9 -9 -9 -8 -8 -8 -8 -8 -7 -7 -7 -7 -7 -7 -7 --------- Run | Yrd Mat Min Mat Min Exi Min Mat Gar Mat Gar Fac Was Fac Gar Fac Gar Fac Machines Accessed 69 | . 9 . 14 . 2 . 10 4 3 4 5 . 13 2 3 . . Terminals 40 | . 6 . 9 . . . 5 4 2 4 1 . 6 2 1 . . Fabricators 4 | . . . . . . . . . . . 1 . 2 . 1 . . Repair Stations 5 | . 1 . 1 . . . 1 . . . . . 2 . . . . Recycling Units 7 | . 2 . 2 . . . 1 . . . 2 . . . . . . Scanalyzers 6 | . . . 2 . . . 2 . . . 1 . 1 . . . . Garrison Access 5 | . . . . . . . 1 . 1 . . . 2 . 1 . . Total Hacks 176 | . 29 . 41 . 2 . 36 9 8 6 9 . 27 2 7 . . Successful 92 | . 21 . 18 . 2 . 20 5 5 4 2 . 10 2 3 . . Failed 83 | . 7 . 23 . . . 16 4 3 2 7 . 17 . 4 . . Catastrophic 24 | . 1 . 5 . . . 1 1 1 2 2 . 9 . 2 . . Database Lockouts 1 | . 1 . . . . . . . . . . . . . . . . Manual 70 | . 15 . 16 . 1 . 17 2 5 1 2 . 6 . 5 . . Terminals 104 | . 21 . 22 . . . 20 9 6 6 2 . 13 2 3 . . Fabricators 7 | . . . . . . . . . . . 2 . 3 . 2 . . Repair Stations 15 | . 2 . 8 . . . 2 . . . . . 3 . . . . Recycling Units 15 | . 6 . 5 . . . 1 . . . 3 . . . . . . Scanalyzers 20 | . . . 6 . . . 8 . . . 2 . 4 . . . . Garrison Access 13 | . . . . . . . 5 . 2 . . . 4 . 2 . . Terminal Hacks 33 | . 8 . 1 . 2 . 5 4 3 3 1 . 3 2 1 . . Record 1 | . . . . . 1 . . . . . . . . . . . . Part Schematic 2 | . 1 . . . . . . . . . 1 . . . . . . Robot Analysis 2 | . 1 . . . . . 1 . . . . . . . . . . Prototype ID Bank 3 | . 3 . . . . . . . . . . . . . . . . Open Door 2 | . . . . . . . . 1 . . . . . 1 . . . Emergency Access Points 4 | . 1 . . . . . . 1 . 1 . . . 1 . . . Terminal Index 1 | . . . . . . . 1 . . . . . . . . . . Alert Level 2 | . . . . . . . . . 1 . . . 1 . . . . Unreport Threat 1 | . . . . . . . . . 1 . . . . . . . . Locate Traps 4 | . 2 . 1 . . . 1 . . . . . . . . . . Hauler Manifests 2 | . . . . . . . 1 . . . . . 1 . . . . Zone Layout 4 | . . . . . . . 1 . 1 . . . 1 . 1 . . Garrison Registry 1 | . . . . . . . . . . 1 . . . . . . . Patrol Navigation 2 | . . . . . . . . 1 . 1 . . . . . . . Security Stations 1 | . . . . . . . . 1 . . . . . . . . . Proto ID Catalog 1 | . . . . . 1 . . . . . . . . . . . . Fabricator Hacks 2 | . . . . . . . . . . . 1 . 1 . . . . Network Status 1 | . . . . . . . . . . . . . 1 . . . . Build 1 | . . . . . . . . . . . 1 . . . . . . Repair Station Hacks 11 | . 2 . 6 . . . 2 . . . . . 1 . . . . Scan Component 6 | . 1 . 3 . . . 1 . . . . . 1 . . . . Repair 5 | . 1 . 3 . . . 1 . . . . . . . . . . Recycling Unit Hacks 3 | . 2 . 1 . . . . . . . . . . . . . . Retrieve Components 3 | . 2 . 1 . . . . . . . . . . . . . . Scanalyzer 10 | . . . 2 . . . 6 . . . . . 2 . . . . Insert Component 6 | . . . 2 . . . 3 . . . . . 1 . . . . Analyze 4 | . . . . . . . 3 . . . . . 1 . . . . Garrison Access Hacks 4 | . . . . . . . 1 . 1 . . . 1 . 1 . . Unlock Access 4 | . . . . . . . 1 . 1 . . . 1 . 1 . . Unauthorized Hacks 29 | . 9 . 8 . . . 6 1 1 1 . . 2 . 1 . . Terminals 21 | . 7 . 6 . . . 6 1 . 1 . . . . . . . Track 1 | . 1 . . . . . . . . . . . . . . . . Operators 3 | . 1 . 1 . . . 1 . . . . . . . . . . Skim 15 | . 5 . 5 . . . 5 . . . . . . . . . . Override 2 | . . . . . . . . 1 . 1 . . . . . . . Fabricators 2 | . . . . . . . . . . . . . 1 . 1 . . Liberate 1 | . . . . . . . . . . . . . . . 1 . . Overload 1 | . . . . . . . . . . . . . 1 . . . . Repair Stations . | . . . . . . . . . . . . . . . . . . Recycling Units 4 | . 2 . 2 . . . . . . . . . . . . . . Tunnel 4 | . 2 . 2 . . . . . . . . . . . . . . Scanalyzers . | . . . . . . . . . . . . . . . . . . Garrison Access 2 | . . . . . . . . . 1 . . . 1 . . . . Reprogram 2 | . . . . . . . . . 1 . . . 1 . . . . Data Cores Recovered 2 | . . . . . . . 1 . 1 . . . . . . . . Used . | . . . . . . . . . . . . . . . . . . Hacking Detections 58 | . 7 . 14 . . . 10 2 3 3 4 . 11 1 3 . . Full Trace Events 8 | . 1 . 1 . . . 3 . . 1 . . 2 . . . . Feedback Events 1 | . . . . . . . . . . 1 . . . . . . . Corruption 1 | . . . . . . . . . . 1 . . . . . . . Feedback Blocked . | . . . . . . . . . . . . . . . . . . Robot Schematics Acquired . | . . . . . . . . . . . . . . . . . . Robots Built . | . . . . . . . . . . . . . . . . . . Authchips . | . . . . . . . . . . . . . . . . . . Time . | . . . . . . . . . . . . . . . . . . Total Robot Build Rating . | . . . . . . . . . . . . . . . . . . Part Schematics Acquired 3 | . 1 . . . . . 1 . . . 1 . . . . . . Parts Built 2 | . . . . . . . . . . . 2 . . . . . . Authchips . | . . . . . . . . . . . . . . . . . . Time 84 | . . . . . . . . . . . 84 . . . . . . Total Part Build Rating 8 | . . . . . . . . . . . 8 . . . . . . Parts Repaired 5 | . 1 . 3 . . . 1 . . . . . . . . . . Time 185 | . 26 . 115 . . . 44 . . . . . . . . . . Parts Recycled . | . . . . . . . . . . . . . . . . . . Recycled Matter . | . . . . . . . . . . . . . . . . . . Retrieved Matter . | . . . . . . . . . . . . . . . . . . Retrieved Components 19 | . 10 . 9 . . . . . . . . . . . . . . Parts Scanalyzed 4 | . . . 1 . . . 2 . . . . . 1 . . . . Part Schematics Acquired 1 | . . . . . . . 1 . . . . . . . . . . Parts Damaged 1 | . . . 1 . . . . . . . . . . . . . . Bothacking | -11 -10 -10 -9 -9 -9 -8 -8 -8 -8 -8 -7 -7 -7 -7 -7 -7 -7 ------------ Run | Yrd Mat Min Mat Min Exi Min Mat Gar Mat Gar Fac Was Fac Gar Fac Gar Fac Used RIF Installer . | . . . . . . . . . . . . . . . . . . Robots Hacked 6 | . . . . . 5 . . . . . 1 . . . . . . Non-combat 4 | . . . . . 3 . . . . . 1 . . . . . . Combat 2 | . . . . . 2 . . . . . . . . . . . . Robot Hacks Applied 6 | . . . . . 5 . . . . . 1 . . . . . . parse_system 5 | . . . . . 5 . . . . . . . . . . . . find_chute 1 | . . . . . . . . . . . 1 . . . . . . Relay Couplers Released 87 | . . . . . . . . 26 . 35 . . 3 18 . 5 . Machine Destruction 84 | . . . . . . . . 26 . 35 . . . 18 . 5 . Programmers 3 | . . . . . . . . . . . . . 3 . . . . Fabnet Peak Effective % . | . . . . . . . . . . . . . . . . . . Robots Rewired 4 | . . . . . . . . 4 . . . . . . . . . Allies Hacked . | . . . . . . . . . . . . . . . . . . Hacks Repelled . | . . . . . . . . . . . . . . . . . . Allies | -11 -10 -10 -9 -9 -9 -8 -8 -8 -8 -8 -7 -7 -7 -7 -7 -7 -7 -------- Run | Yrd Mat Min Mat Min Exi Min Mat Gar Mat Gar Fac Was Fac Gar Fac Gar Fac Total Allies 40 | . . 5 . . . . . 5 2 . . 20 1 4 3 . . Largest Group 20 | . . 5 3 . . . . 3 2 2 . 20 17 2 5 4 . Highest-Rated Group 495 | . . 79 32 . . . . 54 32 32 . 495 432 157 205 143 . Highest-Rated Ally 95 | . . 31 16 . . . . 25 16 16 . 35 31 95 95 95 . Initial Warlord ECA Mod 253 | . . . . . . . . . 14 14 27 27 27 27 38 38 41 Total Orders . | . . . . . . . . . . . . . . . . . . Ally Attacks 295 | . . 7 4 . . . . 13 11 5 . . 216 11 7 21 . Total Damage 5321 | . . 49 41 . . . . 429 111 75 . . 3827 60 256 473 . Kills 50 | . . 3 . . . . . 2 2 1 . . 35 1 2 4 . Allies Corrupted 3 | . . . . . . . . . . . . 1 2 . . . . Allies Melted . | . . . . . . . . . . . . . . . . . . Intel | -11 -10 -10 -9 -9 -9 -8 -8 -8 -8 -8 -7 -7 -7 -7 -7 -7 -7 ------- Run | Yrd Mat Min Mat Min Exi Min Mat Gar Mat Gar Fac Was Fac Gar Fac Gar Fac Active Infowar (turns) 3995 | . . . . . . . . . . . 39 . 1962 1048 477 417 52 Optics 63 | . . . . . . . . . . . . . . . . 11 52 Machine Analysis 3893 | . . . . . . . . . . . . . 1962 1048 477 406 . ECM 39 | . . . . . . . . . . . 39 . . . . . . Robot Analysis Total 2 | . 1 . . . . . 1 . . . . . . . . . . Derelict Logs Recovered 4 | . . 3 . 1 . . . . . . . . . . . . . Drone Launches . | . . . . . . . . . . . . . . . . . . Drone Recoveries . | . . . . . . . . . . . . . . . . . . Exploration | -11 -10 -10 -9 -9 -9 -8 -8 -8 -8 -8 -7 -7 -7 -7 -7 -7 -7 ------------- Run | Yrd Mat Min Mat Min Exi Min Mat Gar Mat Gar Fac Was Fac Gar Fac Gar Fac Turns Passed 24454 | 170 1552 545 2800 1477 2886 1121 1734 2547 522 1605 655 1575 1962 1997 484 770 52 Spaces Moved 14357 | 116 1294 512 1839 607 1693 677 796 1371 352 854 496 455 1313 1196 402 339 45 Core 66 | 1 1 . . . . . . . . . . 64 . . . . . Treads . | . . . . . . . . . . . . . . . . . . Legs . | . . . . . . . . . . . . . . . . . . Wheels 14291 | 115 1293 512 1839 607 1693 677 796 1371 352 854 496 391 1313 1196 402 339 45 Hover . | . . . . . . . . . . . . . . . . . . Flight . | . . . . . . . . . . . . . . . . . . Fastest Speed 50 | 50 80 95 95 155 130 140 140 120 120 120 105 120 113 105 105 105 108 Average Speed 127 | 87 91 95 111 155 142 152 144 132 120 131 119 285 119 108 106 112 108 Slowest Speed 1300 | 90 250 95 155 155 210 210 145 210 120 180 120 1300 123 165 108 160 108 Overloaded Moves . | . . . . . . . . . . . . . . . . . . Propulsion Burnouts . | . . . . . . . . . . . . . . . . . . Robots Hopped . | . . . . . . . . . . . . . . . . . . Potential Cave-ins . | . . . . . . . . . . . . . . . . . . Cave-ins Triggered . | . . . . . . . . . . . . . . . . . . Exploration Rate (%) 63 | 4 98 95 98 99 90 98 46 95 38 87 12 95 37 93 14 33 2 Regions Visited 17 Branch Regions 4 Pre-discovered Areas 11 | . 3 . 4 . 1 . 3 . . . . . . . . . . Known Exits Taken 9 | . 1 1 1 . 1 1 1 . 1 . . . 1 . 1 . . Unknown Exits Taken 2 | 1 . . . 1 . . . . . . . . . . . . . Scrap Searched 8 | . . 3 . 2 . 3 . . . . . . . . . . . Spaces Dug 42 | . 1 . . 1 19 . . 6 . 6 . . 5 1 . 3 . Terrain Destroyed 271 | . 1 10 1 5 51 . 1 10 13 19 1 16 83 3 . 57 . Melee 13 | . . . . . . . . 4 . 4 . . 1 1 . 3 . Projectile 100 | . 1 . 1 5 22 . 1 6 13 13 1 5 27 2 . 3 . AOE 152 | . . 10 . . 25 . . . . . . 11 55 . . 51 . Terrain Rammed . | . . . . . . . . . . . . . . . . . . Walls Destroyed . | . . . . . . . . . . . . . . . . . . Machines Disabled . | . . . . . . . . . . . . . . . . . . Actions | -11 -10 -10 -9 -9 -9 -8 -8 -8 -8 -8 -7 -7 -7 -7 -7 -7 -7 --------- Run | Yrd Mat Min Mat Min Exi Min Mat Gar Mat Gar Fac Was Fac Gar Fac Gar Fac Total 18231 | 148 1532 543 2365 1125 2043 713 1300 1757 393 1075 552 668 1474 1554 440 503 46 Wait 1821 | . 114 4 323 491 143 4 432 25 9 10 12 150 18 64 11 11 . Move 14342 | 115 1293 511 1838 606 1692 676 796 1369 351 853 496 454 1312 1195 402 338 45 Hop . | . . . . . . . . . . . . . . . . . . Pick Up 225 | 8 20 4 40 3 25 3 15 29 5 16 7 5 15 18 3 9 . Fast Attach 43 | 6 9 . 3 . 3 . . 5 . 2 2 2 2 2 2 5 . Attach 67 | . 2 . 3 . 7 2 2 14 . 7 4 . 5 8 1 12 . Detach . | . . . . . . . . . . . . . . . . . . Swap 229 | 1 15 5 24 4 11 3 7 49 2 16 5 14 18 32 8 15 . Drop 216 | 1 17 4 36 7 26 4 15 37 4 11 7 9 14 14 6 4 . Fire 1005 | 17 62 15 98 14 91 21 33 148 22 128 3 30 89 132 7 94 1 Melee 77 | . . . . . 45 . . 11 . 7 . 1 1 7 . 5 . Ram . | . . . . . . . . . . . . . . . . . . Kick . | . . . . . . . . . . . . . . . . . . Crush . | . . . . . . . . . . . . . . . . . . Escape Stasis 128 | . . . . . . . . 31 . 16 16 . . 55 . 10 . Rewire 24 | . . . . . . . . 21 . . . 3 . . . . . Trap . | . . . . . . . . . . . . . . . . . . Miscellaneous 54 | . . . . . . . . 18 . 9 . . . 27 . . . Route ------- -11/Scrapyard -10/Materials (discovered 5 exits: *Mat x3 / *Min x2) -10/Mines (discovered 3 exits: *Mat x2 / Sub) -9/Materials (discovered 5 exits: *Mat x3 / *Min x2) -9/Mines (discovered 4 exits: *Mat x2 / *Exi / [*Zio]) -9/Exiles (discovered 2 exits: *Min x2) -8/Mines (discovered 2 exits: *Mat x2) -8/Materials (discovered 4 exits: *Fac x3 / Gar) -8/Garrison (discovered 3 exits: *Mat x3) -8/Materials (discovered 3 exits: *Fac x2 / Gar) -8/Garrison (discovered 3 exits: *Fac x3) -7/Factory -7/Waste -7/Factory (discovered 4 exits: [*Fac x2] / [*Sto] / Gar) -7/Garrison (discovered 3 exits: *Fac x3) -7/Factory (discovered 3 exits: [*Fac x2] / Gar) -7/Garrison -7/Factory (discovered 1 exit: [*Fac]) History --------- Turn | Location | Event 24 | -11/Scrapyard | Discovered new exit (range 15) 171 | -11/Scrapyard | Entered Materials 304 | -10/Materials | Build established: Mutant 323 | -10/Materials | Discovered new exit (range 4) 438 | -10/Materials | Discovered new exit (range 8) 615 | -10/Materials | Central database locked down 623 | -10/Materials | Discovered new exit (range 16) 692 | -10/Materials | Identified exit to Mines 714 | -10/Materials | Identified exit to Materials 1005 | -10/Materials | Discovered exit to Mines (range 14) 1085 | -10/Materials | Learned location of Mines (-10) 1116 | -10/Materials | Discovered exit to Materials (range 3) 1141 | -10/Materials | Learned 2 Materials zone layouts 1142 | -10/Materials | Loaded intel: 1 repair station location 1148 | -10/Materials | Learned Storage security intel 1166 | -10/Materials | Learned 4 Materials zone layouts 1430 | -10/Materials | Repaired Assault Rifle 1723 | -10/Materials | Entered Mines 1755 | -10/Mines | Assisted by bots powering up and referring to "LRC-V3" 1899 | -10/Mines | Found a damaged Exp. Sensor Array with a note attached 1901 | -10/Mines | Found Prototype Device 1994 | -10/Mines | Identified exit to Subcaves 2190 | -10/Mines | Learned Materials emergency access door positions 2268 | -10/Mines | Entered Materials 2268 | -9/Materials | Accompanied by 3 allies 2268 | -9/Materials | Evolved 2 slots: Weapon x2 2269 | -9/Materials | Identified exit to Materials 2269 | -9/Materials | Identified exit to Mines 2561 | -9/Materials | Build established: Gunner 3103 | -9/Materials | Identified Exp. Sensor Array 3235 | -9/Materials | Discovered exit to Materials (range 16) 3740 | -9/Materials | Loaded intel: 2 repair station locations 3844 | -9/Materials | Learned Recycling recycling unit intel 3883 | -9/Materials | Learned Materials emergency access door positions 3931 | -9/Materials | Learned Storage trap positions 3940 | -9/Materials | Learned location of Zion (-7) 3960 | -9/Materials | Loaded intel: 17 trap records 3992 | -9/Materials | Loaded intel: 43 non-interactive machine locations 4033 | -9/Materials | Loaded intel: 11 terminal locations 4084 | -9/Materials | Learned Storage non-interactive machine intel 4280 | -9/Materials | Repaired Imp. Assault Rifle 4313 | -9/Materials | Repaired Hvy. Assault Rifle 4346 | -9/Materials | Repaired Hvy. Assault Rifle 5068 | -9/Materials | First assault squad dispatched 5068 | -9/Materials | Entered Mines 5094 | -9/Mines | Met a Derelict bent on vengeance 5165 | -9/Mines | Assembled infested the area 5802 | -9/Mines | Discovered exit to Materials (range 14) 5909 | -9/Mines | Learned Materials garrison access intel 5979 | -9/Mines | A Derelict revealed a hidden shortcut to a safe place 5999 | -9/Mines | Discovered exit to Materials (range 6) 6538 | -9/Mines | Deemed a non-threat by the Exiles lab entrance 6538 | -9/Mines | Discovered new exit (range 5) 6545 | -9/Mines | Entered Exiles 6546 | -9/Exiles | Identified exit to Mines 6587 | -9/Exiles | Met 8R-AWN 6608 | -9/Exiles | Met EX-HEX 6688 | -9/Exiles | Met EX-DEC 6896 | -9/Exiles | Met EX-BIN 7113 | -9/Exiles | Aligned with FarCom system 7114 | -9/Exiles | Given EX-Vault access code 7146 | -9/Exiles | Build established: Mutant 7149 | -9/Exiles | Opened EX-Vault 7183 | -9/Exiles | Warned to stay clear of 0b10 Research branches 7209 | -9/Exiles | Found Longsword +1 7994 | -9/Exiles | Attacked by the Exiles 8083 | -9/Exiles | Build established: Gunner 8130 | -9/Exiles | Destroyed 8R-AWN 8140 | -9/Exiles | Found 8R-AWN's Boregun 8142 | -9/Exiles | Found AS-neutralizer No. 17b 8690 | -9/Exiles | Destroyed EX-HEX 8718 | -9/Exiles | Destroyed EX-BIN 8727 | -9/Exiles | Destroyed EX-DEC 8963 | -9/Exiles | Found Exp. Core Analyzer 9431 | -9/Exiles | Entered Mines 9436 | -8/Mines | Discovered exit to Materials (range 12) 9527 | -8/Mines | Found a Scrap Suit stashed away for nefarious purposes 9549 | -8/Mines | Core integrity fell below 50% 9951 | -8/Mines | Discovered exit to Materials (range 12) 10552 | -8/Mines | Entered Materials 10552 | -8/Materials | Evolved 2 slots: Utility x1, Weapon x1 10554 | -8/Materials | Loaded intel: 1 garrison access location 10978 | -8/Materials | Repaired Gauss Rifle 11040 | -8/Materials | Discovered new exit (range 16) 11556 | -8/Materials | Garrison activated, responded to threat 11833 | -8/Materials | Learned Storage security intel 11899 | -8/Materials | Learned location of Storage (-7) 11995 | -8/Materials | Learned 4 Factory zone layouts 12029 | -8/Materials | Learned 4 Lower Caves zone layouts 12052 | -8/Materials | Learned Factory fabricator intel 12066 | -8/Materials | Identified exit to Factory 12171 | -8/Materials | Learned Storage terminal intel 12286 | -8/Materials | Identified exit to Garrison 12286 | -8/Materials | Entered Garrison 12301 | -8/Garrison | Triggered checkpoint 12348 | -8/Garrison | Triggered checkpoint 12529 | -8/Garrison | Garrison Relay disabled 12836 | -8/Garrison | Triggered checkpoint 12858 | -8/Garrison | Triggered checkpoint 12903 | -8/Garrison | Garrison Relay disabled 12908 | -8/Garrison | Lost 3 allies 12934 | -8/Garrison | Triggered checkpoint 12982 | -8/Garrison | Triggered checkpoint 13134 | -8/Garrison | Triggered checkpoint 13264 | -8/Garrison | Triggered checkpoint 13317 | -8/Garrison | Garrison Relay disabled 13339 | -8/Garrison | Garrison Relay disabled 13390 | -8/Garrison | Discovered new exit (range 12) 13400 | -8/Garrison | Build established: Scavenger-Gunner 13524 | -8/Garrison | Triggered checkpoint 13623 | -8/Garrison | Garrison Relay disabled 13666 | -8/Garrison | Discovered new exit (range 8) 13836 | -8/Garrison | Triggered checkpoint 13872 | -8/Garrison | Rescued a captive Derelict 13884 | -8/Garrison | Garrison Relay disabled 13920 | -8/Garrison | Discovered new exit (range 5) 14081 | -8/Garrison | Phase Generator disabled 14106 | -8/Garrison | Spotted B-75 Beast 14137 | -8/Garrison | Destroyed B-75 Beast 14158 | -8/Garrison | Lost 3 parts (1p2w) 14201 | -8/Garrison | Identified exit to Materials 14415 | -8/Garrison | Learned Materials security intel 14833 | -8/Garrison | Entered Materials 14833 | -8/Materials | Accompanied by 1 ally 14966 | -8/Materials | Core integrity fell below 50% 15113 | -8/Materials | Discovered exit to Factory (range 12) 15315 | -8/Materials | Discovered exit to Factory (range 16) 15343 | -8/Materials | Identified exit to Garrison 15351 | -8/Materials | Garrison activated, responded to threat 15355 | -8/Materials | Entered Garrison 15355 | -8/Garrison | Accompanied by 2 allies 15495 | -8/Garrison | Triggered checkpoint 15528 | -8/Garrison | Garrison Relay disabled 15556 | -8/Garrison | P-60 Hacker assimilated allied G-47 Trooper 15641 | -8/Garrison | Destroyed 8 combat bots 15686 | -8/Garrison | Garrison Relay disabled 15686 | -8/Garrison | Garrison Relay disabled 15690 | -8/Garrison | Garrison Relay disabled 15749 | -8/Garrison | Triggered checkpoint 15825 | -8/Garrison | Core integrity fell below 20% 15837 | -8/Garrison | Triggered checkpoint 15921 | -8/Garrison | Discovered exit to Factory (range 9) 16029 | -8/Garrison | Garrison Relay disabled 16248 | -8/Garrison | Phase Generator disabled 16278 | -8/Garrison | Triggered checkpoint 16320 | -8/Garrison | Triggered checkpoint 16360 | -8/Garrison | Garrison Relay disabled 16400 | -8/Garrison | Garrison Relay disabled 16447 | -8/Garrison | Discovered exit to Factory (range 10) 16521 | -8/Garrison | Spotted B-75 Beast 16626 | -8/Garrison | Triggered checkpoint 16749 | -8/Garrison | Triggered checkpoint 16888 | -8/Garrison | Discovered exit to Factory (range 56) 16888 | -8/Garrison | Discovered exit to Factory (range 14) 16888 | -8/Garrison | Discovered exit to Factory (range 80) 16939 | -8/Garrison | Garrison Relay disabled 16960 | -8/Garrison | Entered Factory 16960 | -7/Factory | Evolved 2 slots: Propulsion x1, Utility x1 16962 | -7/Factory | Loaded intel: 6 fabricator locations 17382 | -7/Factory | Discovered new exit (range 14) 17515 | -7/Factory | Fabricated Arc Projector (x2) 17615 | -7/Factory | Sucked down chute 17615 | -7/Factory | Entered Waste 17616 | -7/Waste | Joined by Warlord forces that had cleared the area 18242 | -7/Waste | Discovered new exit (range 15) 19190 | -7/Waste | Entered Factory 19190 | -7/Factory | Accompanied by 17 allies 19646 | -7/Factory | P-70 Sage assimilated allied Z8-HFP(g) 19758 | -7/Factory | Lost 4 allies 19882 | -7/Factory | Destroyed 7 combat bots 19935 | -7/Factory | Discovered new exit (range 9) 19990 | -7/Factory | First assault squad dispatched 20162 | -7/Factory | Lost 3 allies 20369 | -7/Factory | Garrison activated, responded to threat 20453 | -7/Factory | Discovered new exit (range 12) 20632 | -7/Factory | Lost 4 parts (2n2w) 21081 | -7/Factory | Discovered new exit (range 16) 21142 | -7/Factory | Identified exit to Garrison 21149 | -7/Factory | Garrison activated, responded to threat 21152 | -7/Factory | Entered Garrison 21152 | -7/Garrison | Accompanied by 1 ally 21222 | -7/Garrison | Triggered checkpoint 21272 | -7/Garrison | Garrison Relay disabled 21325 | -7/Garrison | Triggered checkpoint 21374 | -7/Garrison | Destroyed 7 combat bots 21409 | -7/Garrison | Triggered checkpoint 21605 | -7/Garrison | Discovered new exit (range 11) 21608 | -7/Garrison | Triggered checkpoint 21744 | -7/Garrison | Garrison Relay disabled 21933 | -7/Garrison | Phase Generator disabled 22022 | -7/Garrison | Triggered checkpoint 22066 | -7/Garrison | Triggered checkpoint 22219 | -7/Garrison | Discovered new exit (range 7) 22323 | -7/Garrison | Rescued a captive Derelict 22324 | -7/Garrison | Rescued a captive Derelict 22407 | -7/Garrison | Garrison Relay disabled 22828 | -7/Garrison | Discovered new exit (range 12) 22860 | -7/Garrison | Triggered checkpoint 22920 | -7/Garrison | Garrison Relay disabled 23118 | -7/Garrison | Found embedded Infiltrators 23149 | -7/Garrison | Entered Factory 23149 | -7/Factory | Accompanied by 2 allies 23185 | -7/Factory | Discovered new exit (range 16) 23283 | -7/Factory | Discovered new exit (range 16) 23524 | -7/Factory | Core integrity fell below 50% 23628 | -7/Factory | Identified exit to Garrison 23633 | -7/Factory | Entered Garrison 23633 | -7/Garrison | Accompanied by 4 allies 23645 | -7/Garrison | Triggered checkpoint 23673 | -7/Garrison | Garrison Relay disabled 23745 | -7/Garrison | Triggered checkpoint 23795 | -7/Garrison | Lost 3 allies 23802 | -7/Garrison | Discovered new exit (range 3) 23991 | -7/Garrison | Triggered checkpoint 24009 | -7/Garrison | Core integrity fell below 20% 24009 | -7/Garrison | Triggered checkpoint 24020 | -7/Garrison | Triggered checkpoint 24025 | -7/Garrison | System corruption reached 10% 24070 | -7/Garrison | Lost 15 parts (1p3n3u8w) 24091 | -7/Garrison | Destroyed 12 combat bots 24403 | -7/Garrison | Entered Factory 24441 | -7/Factory | Discovered new exit (range 17) 24455 | -7/Factory | Destroyed by S-27 Virus with Autogun Last Messages --------------- 24378_ Acquired Adv. Visual Processing Unit. 24380_ Acquired Targeting Computer. 24383_ Acquired Imp. Heat Sink. 24387_ System corrupted: Matter fused (-10). 24390_ Acquired 18 matter. 24391_ Acquired 5 matter. LOCATION=UNKNOWN GOAL=ESCAPE 24404_ System corrupted: Component data lost. 24426_ System corrupted: Energy discharge (-74). 24430_ ALERT: All DSF locations entering lockdown mode. 24441_ EXIT=FOUND 24445_ System corrupted: Matter fused (-10). 24451_ Triggered Ambush Trap. 24451_ L-41 Fighter emerges from a hatch in the floor. 24451_ G-47 Trooper emerges from a hatch in the floor. 24451_ S-27 Virus emerges from a hatch in the floor. 24451_ Shock Rifle destroyed. 24453_ Gatling Laser destroyed. 24453_ Hvy. Laser severed. Map ----- +----------------------------------------------------+ | ?????????????????????????????????????????????????? | | ?????????????????????????????????????????????????? | | ?????????????????????????????????????????????????? | | ?????????????????????????????????????????????????? | | ?????????????????????????????????????????????????? | | ?????????????????????????????????????????????????? | | ?????????????????????????????????????????????????? | | ?????????????????????????????????????????????????? | | ?????????????????????????????????????????????????? | | ?????????????????????????????????????????????????? | | ?????????????????????????????????????????????????? | | ?????????????????????????????????????????????????? | | ????????????????????????###??????????????????????? | | ???????????????????????? ??????????????????????? | | ????????????????????????